bitfinex/quotes_SOLUSD_20250413
["timestamp","ask_amount","ask_price","bid_price","bid_amount"]
[1744576284455,7.7941,128.31,128.24,27.0363813]
[1744576284659,8.07752314,128.32,128.26,27.0363813]
[1744576284860,27.0363813,128.31,128.26,27.0363813]
[1744576285361,27.0363813,128.32,128.27,27.0363813]
[1744576285553,27.0363813,128.33,128.28,27.0363813]
[1744576285757,27.0363813,128.34,128.29,27.0363813]
[1744576285946,27.0363813,128.33,128.28,6.2303]
[1744576286267,27.0363813,128.33,128.28,33.2666813]
[1744576286854,27.0363813,128.33,128.29,7.7948]
[1744576287375,27.0363813,128.33,128.28,41.0619813]
[1744576287679,82.9,128.38,128.31,27.0363813]
[1744576287878,27.0363813,128.36,128.31,27.0363813]
[1744576288781,27.0363813,128.37,128.33,7.7924]
[1744576288987,27.0363813,128.37,128.32,7.7927]
[1744576289147,34.8263813,128.37,128.32,7.7927]
[1744576289475,27.0363813,128.35,128.31,7.7935]
[1744576290050,27.0363813,128.36,128.31,7.7935]
[1744576290459,34.8269813,128.36,128.31,7.7935]
[1744576291571,27.0363813,128.37,128.31,34.8298813]
[1744576291775,53.0363813,128.38,128.32,27.0363813]
[1744576291946,26.0,128.38,128.33,27.0363813]
[1744576292371,53.0363813,128.38,128.31,7.7935]
[1744576292549,53.0363813,128.38,128.31,27.2775]
[1744576292749,53.0363813,128.38,128.32,27.0363813]
[1744576292972,27.0363813,128.36,128.31,34.8298813]
[1744576293153,27.0363813,128.34,128.28,6.2303]
[1744576293349,27.0363813,128.33,128.29,7.7945]
[1744576293564,26.0,128.35,128.29,34.8308813]
[1744576293770,27.0363813,128.33,128.29,7.7945]
[1744576293978,27.0363813,128.34,128.29,7.7945]
[1744576294150,27.0363813,128.33,128.28,14.0255]
[1744576294344,27.0363813,128.32,128.28,14.0255]
[1744576294549,27.0363813,128.31,128.27,17.8159]
[1744576294750,27.0363813,128.31,128.27,7.7959]
[1744576294964,1.5002,128.33,128.24,27.0363813]
[1744576295167,27.0363813,128.3,128.24,27.0363813]
[1744576295376,34.8309813,128.3,128.24,34.8337813]
[1744576295582,27.0363813,128.31,128.25,27.0363813]
[1744576295879,27.0363813,128.3,128.25,27.0363813]
[1744576296376,27.0363813,128.32,128.26,27.0363813]
[1744576296557,34.8289813,128.33,128.27,27.0363813]
[1744576296882,26.0,128.32,128.27,27.0363813]
[1744576297180,27.0363813,128.32,128.27,27.0363813]
[1744576297680,19.4793,128.35,128.27,34.8317813]
[1744576297854,27.0363813,128.33,128.28,27.0363813]
[1744576298379,27.0363813,128.34,128.28,27.0363813]
[1744576298962,34.8285813,128.34,128.28,34.8312813]
[1744576299274,27.0363813,128.35,128.29,27.0363813]
[1744576299483,27.0363813,128.35,128.3,27.0363813]
[1744576299484,34.8275813,128.35,128.3,27.0363813]
[1744576299675,34.8275813,128.35,128.28,27.2835]
[1744576299884,34.8275813,128.35,128.29,27.0363813]
[1744576300576,34.8275813,128.35,128.3,7.7942]
[1744576301388,34.8275813,128.35,128.3,34.8305813]
[1744576301684,34.8275813,128.35,128.3,27.0363813]
[1744576302058,7.7912,128.35,128.3,27.0363813]
[1744576302683,7.7912,128.35,128.3,34.8300813]
[1744576302872,34.8275813,128.35,128.3,34.8300813]
[1744576303076,34.8271813,128.36,128.31,27.0363813]
[1744576303257,34.8271813,128.36,128.3,7.7937]
[1744576303458,34.8271813,128.36,128.3,34.8300813]
[1744576305574,27.0363813,128.35,128.28,19.4886]
[1744576305761,27.0363813,128.35,128.3,27.0363813]
[1744576306664,27.0363813,128.35,128.3,34.8300813]
[1744576306988,26.0,128.28,128.21,27.0363813]
[1744576307166,27.0363813,128.27,128.21,27.0363813]
[1744576307862,53.0363813,128.29,128.23,27.0363813]
[1744576308260,27.0363813,128.28,128.22,27.0363813]
[1744576308581,34.8319813,128.28,128.22,27.0363813]
[1744576308789,60.8313813,128.29,128.23,27.0363813]
[1744576309085,27.0363813,128.29,128.24,27.0363813]
[1744576309390,27.0363813,128.3,128.24,27.0363813]
[1744576309588,27.0363813,128.32,128.27,27.0363813]
[1744576309965,27.0363813,128.32,128.26,27.0363813]
[1744576310586,34.8295813,128.32,128.27,27.0363813]
[1744576310757,7.7932,128.32,128.27,27.0363813]
[1744576311668,82.9,128.36,128.29,27.0363813]
[1744576311869,27.0363813,128.35,128.3,27.0363813]
[1744576312881,34.8280813,128.35,128.3,27.0363813]
[1744576313888,7.7917,128.35,128.31,27.0363813]
[1744576314065,7.7917,128.35,128.3,27.0363813]
[1744576314787,7.7917,128.35,128.31,2.87610895]
[1744576315265,7.7917,128.35,128.31,29.91249025]
[1744576315587,7.7917,128.35,128.31,27.0363813]
[1744576315962,34.8280813,128.35,128.3,27.0363813]
[1744576316770,34.8280813,128.35,128.31,2.87446212]
[1744576317386,34.8280813,128.35,128.3,27.0363813]
[1744576317800,34.8280813,128.35,128.3,34.8305813]
[1744576319301,7.7917,128.35,128.31,27.0363813]
[1744576319794,34.8280813,128.35,128.3,27.0363813]
[1744576319996,34.8280813,128.35,128.29,27.0363813]
[1744576320200,27.0363813,128.33,128.27,7.796]
[1744576320373,27.0363813,128.3,128.26,9.98]
[1744576320577,27.0363813,128.3,128.27,2.87361189]
[1744576320774,27.0363813,128.33,128.28,27.0363813]
[1744576321099,27.0363813,128.34,128.29,27.0363813]
[1744576321389,27.0363813,128.34,128.29,34.8308813]
[1744576321692,34.8268813,128.36,128.31,27.0363813]
[1744576322290,34.8268813,128.36,128.3,27.0363813]
[1744576322989,34.8268813,128.36,128.31,2.87641219]
[1744576323995,27.0363813,128.34,128.31,2.87641219]
[1744576324167,27.0363813,128.32,128.27,27.0363813]
[1744576324570,27.0363813,128.33,128.28,27.0363813]
[1744576324768,27.0363813,128.33,128.25,7.7972]
[1744576324987,27.0363813,128.31,128.26,27.0363813]
[1744576325191,27.0363813,128.31,128.25,34.8335813]
[1744576325378,27.0363813,128.31,128.26,27.0363813]
[1744576325582,27.0363813,128.3,128.25,7.7972]
[1744576325776,27.0363813,128.3,128.24,33.3341813]
[1744576325973,27.0363813,128.3,128.25,27.0363813]
[1744576326168,34.8308813,128.3,128.25,27.0363813]
[1744576326374,7.7945,128.3,128.24,6.2978]
[1744576326676,27.0363813,128.29,128.24,6.2978]
[1744576327287,27.0363813,128.29,128.24,33.3341813]
[1744576327800,27.0363813,128.29,128.24,6.2978]
[1744576328094,7.7954,128.28,128.24,6.2978]
[1744576328495,27.0363813,128.3,128.24,41.1317813]
[1744576328700,27.0363813,128.29,128.24,41.1317813]
[1744576329196,7.793,128.32,128.24,41.1317813]
[1744576329376,27.0363813,128.31,128.25,27.0363813]
[1744576329575,27.0363813,128.3,128.25,27.0363813]
[1744576329985,1.5301,128.33,128.26,7.7966]
[1744576330286,27.0363813,128.31,128.26,7.7966]
[1744576331093,27.0363813,128.31,128.26,27.0363813]
[1744576331489,27.0363813,128.3,128.25,34.8335813]
[1744576332680,27.0363813,128.31,128.26,27.0363813]
[1744576333078,27.0363813,128.33,128.28,27.0363813]
[1744576333279,27.0363813,128.34,128.26,18.64964886]
[1744576333482,27.0363813,128.33,128.28,27.0363813]
[1744576333681,27.0363813,128.34,128.29,27.0363813]
[1744576334185,27.0363813,128.35,128.3,27.0363813]
[1744576334596,12.03011165,128.39,128.33,27.0363813]
[1744576334796,27.0363813,128.38,128.33,27.0363813]
[1744576335096,27.0363813,128.39,128.34,27.0363813]
[1744576335304,27.0363813,128.38,128.33,27.0363813]
[1744576335608,7.7888,128.39,128.33,27.0363813]
[1744576335779,27.0363813,128.38,128.33,27.0363813]
[1744576336704,27.0363813,128.37,128.32,27.0363813]
[1744576336998,27.0363813,128.37,128.31,37.0163813]
[1744576337200,27.0363813,128.37,128.32,27.0363813]
[1744576337510,27.0363813,128.38,128.33,27.0363813]
[1744576337683,34.8257813,128.38,128.33,27.0363813]
[1744576338097,27.0363813,128.38,128.33,27.0363813]
[1744576338395,27.0363813,128.37,128.3,107.68914886]
[1744576338597,27.0363813,128.35,128.3,6.4395]
[1744576338785,27.2628,128.38,128.3,6.4395]
[1744576339096,27.0363813,128.33,128.27,43.4558813]
[1744576339875,27.0363813,128.33,128.28,27.0363813]
[1744576340897,27.0363813,128.38,128.32,27.0363813]
[1744576341109,7.789,128.39,128.34,33.4758813]
[1744576341287,12.09311165,128.4,128.36,27.0363813]
[1744576341482,39.12949295,128.4,128.34,6.4395]
[1744576341684,12.09311165,128.4,128.35,27.0363813]
[1744576341903,12.09311165,128.4,128.36,27.0363813]
[1744576342408,27.0993813,128.4,128.34,6.4395]
[1744576342706,0.063,128.4,128.36,34.8264813]
[1744576343210,0.063,128.4,128.37,27.0363813]
[1744576343410,0.063,128.4,128.35,18.64964886]
[1744576343585,0.063,128.4,128.35,45.68603016]
[1744576343785,0.063,128.4,128.35,27.0363813]
[1744576343996,27.0363813,128.39,128.34,41.2672813]
[1744576344207,27.0363813,128.39,128.34,33.4758813]
[1744576344587,27.0993813,128.4,128.35,27.0363813]
[1744576344903,34.8880813,128.4,128.35,27.0363813]
[1744576345103,7.8517,128.4,128.35,27.0363813]
[1744576345408,34.8880813,128.4,128.35,27.0363813]
[1744576345591,27.0363813,128.38,128.34,6.4395]
[1744576345802,27.0363813,128.37,128.32,27.0363813]
[1744576346097,27.0363813,128.35,128.3,6.4395]
[1744576346285,27.0363813,128.33,128.3,6.4395]
[1744576346490,27.0363813,128.37,128.31,27.0363813]
[1744576346683,27.0363813,128.38,128.32,27.0363813]
[1744576346883,27.0363813,128.37,128.31,45.68603016]
[1744576347091,27.0363813,128.37,128.31,18.64964886]
[1744576347294,27.0993813,128.4,128.34,27.0363813]
[1744576347507,27.0993813,128.4,128.35,27.0363813]
[1744576347689,0.063,128.4,128.38,27.0363813]
[1744576347883,0.063,128.4,128.39,27.0363813]
[1744576348307,0.063,128.4,128.39,46.11251487]
[1744576348612,0.063,128.4,128.37,6.4395]
[1744576348913,27.0993813,128.4,128.35,27.0363813]
[1744576349127,27.0363813,128.37,128.27,1.0]
[1744576349319,27.0363813,128.35,128.31,6.4295]
[1744576349518,0.063,128.4,128.32,45.68603016]
[1744576349717,27.0363813,128.38,128.32,45.68603016]
[1744576349918,27.0363813,128.37,128.32,45.68603016]
[1744576350222,27.0363813,128.34,128.29,28.6767813]
[1744576350725,27.38370444,128.4,128.27,6.57166157]
[1744576350726,27.0363813,128.32,128.27,27.0363813]
[1744576351021,1.5987,128.35,128.28,27.0363813]
[1744576351197,27.0363813,128.34,128.29,27.0363813]
[1744576352122,27.0363813,128.35,128.3,27.0363813]
[1744576352302,34.8270813,128.36,128.31,27.0363813]
[1744576352720,27.0363813,128.36,128.31,34.8295813]
[1744576352932,34.8263813,128.37,128.31,7.7932]
[1744576353324,34.8263813,128.37,128.31,27.0363813]
[1744576353523,34.8263813,128.37,128.31,34.8298813]
[1744576353826,34.8263813,128.37,128.32,27.0363813]
[1744576354030,27.0363813,128.35,128.3,6.4295]
[1744576354205,27.0363813,128.31,128.25,1.5372]
[1744576354409,27.0363813,128.28,128.23,9.94]
[1744576354909,34.8318813,128.28,128.23,44.7746813]
[1744576355108,34.8318813,128.28,128.23,9.94]
[1744576355328,34.8318813,128.28,128.23,44.7745813]
[1744576355514,34.8318813,128.28,128.23,36.9763813]
[1744576356126,7.7955,128.28,128.23,44.7746813]
[1744576356304,34.8318813,128.28,128.23,36.9763813]
[1744576357434,7.7955,128.28,128.23,44.7745813]
[1744576357815,7.7955,128.28,128.24,27.0363813]
[1744576358203,7.7936,128.31,128.24,27.0363813]
[1744576358411,34.8299813,128.31,128.25,27.0363813]
[1744576358726,27.0363813,128.29,128.24,45.68603016]
[1744576359035,34.8311813,128.29,128.24,53.48373016]
[1744576359439,34.8306813,128.3,128.25,27.0363813]
[1744576359612,27.0363813,128.3,128.25,27.0363813]
[1744576360304,34.8303813,128.31,128.26,27.0363813]
[1744576360935,34.8303813,128.31,128.25,27.0363813]
[1744576361312,34.8303813,128.31,128.24,26.44734886]
[1744576361313,34.8294813,128.32,128.26,26.44624886]
[1744576361635,27.0363813,128.31,128.26,53.48263016]
[1744576362515,34.8300813,128.31,128.26,53.48263016]
[1744576362922,7.7937,128.31,128.26,7.7966]
[1744576363235,7.7937,128.31,128.21,15.8691]
[1744576363236,27.0363813,128.27,128.21,15.8691]
[1744576363446,27.0363813,128.26,128.21,15.8691]
[1744576363737,27.0363813,128.26,128.21,6.5324]
[1744576363931,27.0363813,128.25,128.21,6.5324]
[1744576364114,27.0363813,128.25,128.2,7.83]
[1744576364442,1.5179,128.3,128.2,0.03]
[1744576364443,27.0363813,128.24,128.2,0.03]
[1744576364641,34.8344813,128.24,128.2,0.03]
[1744576364942,7.7981,128.24,128.2,0.03]
[1744576365242,34.8337813,128.25,128.2,27.0663813]
[1744576366122,34.8337813,128.25,128.2,34.8665813]
[1744576366812,27.0363813,128.26,128.21,27.0363813]
[1744576367138,27.0363813,128.26,128.2,34.8665813]
[1744576367815,27.0363813,128.25,128.2,34.8665813]
[1744576368235,7.7966,128.26,128.2,34.8665813]
[1744576368236,34.8329813,128.26,128.2,34.8665813]
[1744576368531,27.0363813,128.27,128.22,27.0363813]
[1744576368837,27.0363813,128.27,128.21,18.64964886]
[1744576369012,27.0363813,128.27,128.22,27.0363813]
[1744576369532,34.8313813,128.29,128.23,27.0363813]
[1744576369716,27.0363813,128.28,128.23,27.0363813]
[1744576370330,34.8313813,128.29,128.24,7.7978]
[1744576371016,27.0363813,128.29,128.24,34.8341813]
[1744576371625,27.0363813,128.3,128.25,27.0363813]
[1744576372015,25.7831,128.35,128.25,27.0363813]
[1744576372016,25.7831,128.35,128.29,27.0363813]
[1744576372334,34.8283813,128.34,128.29,34.8306813]
[1744576373639,34.8283813,128.34,128.28,45.68603016]
[1744576373814,34.8283813,128.34,128.29,27.0363813]
[1744576374625,34.8283813,128.34,128.29,34.8307813]
[1744576374835,27.0993813,128.36,128.31,27.0363813]
[1744576375738,34.8904813,128.36,128.31,27.0363813]
[1744576377234,34.8904813,128.36,128.29,36.40404886]
[1744576377235,27.0363813,128.35,128.29,9.96]
[1744576377532,7.8541,128.36,128.26,18.64964886]
[1744576377729,27.0363813,128.3,128.26,18.64964886]
[1744576378035,27.0363813,128.31,128.26,45.68603016]
[1744576378218,27.0363813,128.32,128.27,27.0363813]
[1744576378416,34.8294813,128.32,128.27,27.0363813]
[1744576378624,27.0363813,128.3,128.26,18.64964886]
[1744576378932,27.0363813,128.31,128.26,45.68603016]
[1744576379516,27.0363813,128.31,128.26,53.48243016]
[1744576379840,27.0363813,128.31,128.26,26.44604886]
[1744576380049,27.0363813,128.31,128.26,53.48243016]
[1744576380536,27.0363813,128.32,128.27,27.0363813]
[1744576380741,34.8287813,128.34,128.28,27.0363813]
[1744576381541,27.0363813,128.33,128.28,27.0363813]
[1744576381727,27.0363813,128.33,128.29,7.7948]
[1744576382543,0.063,128.36,128.3,45.68603016]
[1744576382839,0.063,128.36,128.33,27.0363813]
[1744576383029,0.063,128.36,128.32,33.0857813]
[1744576383620,0.063,128.36,128.33,34.8287813]
[1744576385352,27.0363813,128.35,128.31,7.7935]
[1744576385535,27.0363813,128.34,128.3,28.56964886]
[1744576385733,0.063,128.36,128.31,27.0363813]
[1744576385940,27.0993813,128.36,128.31,27.0363813]
[1744576386535,27.0363813,128.35,128.3,63.40003016]
[1744576386735,0.063,128.36,128.32,27.0363813]
[1744576387143,0.063,128.36,128.33,27.0363813]
[1744576387327,0.063,128.36,128.34,27.0363813]
[1744576387527,0.063,128.36,128.33,45.68603016]
[1744576388135,0.063,128.36,128.34,27.0363813]
[1744576388743,0.063,128.36,128.33,7.7924]
[1744576389122,27.0363813,128.34,128.24,89.0198]
[1744576389345,27.0363813,128.28,128.22,7.7987]
[1744576389550,27.0363813,128.26,128.21,41.2556813]
[1744576389752,27.0363813,128.29,128.24,27.0363813]
[1744576389938,27.0363813,128.29,128.23,27.0363813]
[1744576390132,27.0363813,128.28,128.23,27.0363813]
[1744576390734,27.0363813,128.28,128.23,34.8347813]
[1744576390933,7.7952,128.29,128.23,34.8347813]
[1744576391140,34.8315813,128.29,128.23,34.8347813]
[1744576391837,34.8306813,128.3,128.24,53.48383016]
[1744576392043,7.7938,128.31,128.25,27.0363813]
[1744576392353,27.0363813,128.31,128.26,45.68603016]
[1744576393152,27.0363813,128.31,128.26,18.64964886]
[1744576393449,27.0363813,128.31,128.26,45.68603016]
[1744576393639,27.0363813,128.31,128.26,27.0363813]
[1744576393951,27.0363813,128.32,128.27,26.44544886]
[1744576394129,27.0363813,128.31,128.27,26.44544886]
[1744576394735,27.0363813,128.32,128.27,26.44544886]
[1744576396054,27.0363813,128.32,128.26,27.0363813]
[1744576396055,27.0363813,128.29,128.25,18.64964886]
[1744576396254,27.0363813,128.28,128.24,82.6]
[1744576396444,27.0363813,128.28,128.24,18.64964886]
[1744576396843,7.7933,128.32,128.24,53.48363016]
[1744576397043,27.0363813,128.3,128.25,27.0363813]
[1744576397241,27.0363813,128.28,128.24,18.64964886]
[1744576397553,27.0363813,128.32,128.24,18.64964886]
[1744576397754,27.0363813,128.32,128.23,0.14216157]
[1744576397755,27.0363813,128.25,128.22,9.92]
[1744576397962,27.0363813,128.24,128.2,22.50598753]
[1744576398152,27.0363813,128.23,128.2,22.50598753]
[1744576398656,27.0363813,128.24,128.2,22.50598753]
[1744576399542,27.0363813,128.23,128.2,14.70598753]
[1744576399736,27.0363813,128.24,128.2,22.50608753]
[1744576401141,27.0363813,128.25,128.21,18.64964886]
[1744576401343,7.7958,128.28,128.21,18.64964886]
[1744576401549,7.795,128.29,128.21,45.68603016]
[1744576401752,27.0363813,128.26,128.21,45.68603016]
[1744576402658,27.0363813,128.26,128.22,7.799]
[1744576403057,7.795,128.29,128.22,34.8353813]
[1744576403058,27.0363813,128.27,128.22,34.8353813]
[1744576403645,27.0363813,128.25,128.2,14.70598753]
[1744576403846,27.0363813,128.24,128.2,22.50608753]
[1744576404763,34.8342813,128.24,128.2,14.70598753]
[1744576404956,27.0363813,128.21,128.2,14.70598753]
[1744576405260,27.0363813,128.21,128.2,0.03]
[1744576406963,34.8360813,128.21,128.2,0.03]
[1744576409556,54.3352813,128.21,128.18,0.03]
[1744576409866,27.0363813,128.19,128.18,0.03]
[1744576410967,34.8372813,128.19,128.18,0.03]
[1744576413772,7.8003,128.2,128.18,0.03]
[1744576414272,34.8366813,128.2,128.18,0.03]
[1744576414564,34.8354813,128.22,128.18,0.03]
[1744576414956,27.0363813,128.21,128.18,0.03]
[1744576416570,7.796,128.27,128.2,27.0363813]
[1744576416879,27.0363813,128.26,128.21,27.0363813]
[1744576417649,34.8330813,128.26,128.21,34.8356813]
[1744576417949,28.60365709,128.3,128.22,27.0363813]
[1744576418150,27.0363813,128.28,128.22,27.0363813]
[1744576418358,27.0363813,128.27,128.22,27.0363813]
[1744576418559,27.0363813,128.23,128.18,0.03]
[1744576418878,27.0363813,128.21,128.18,0.03]
[1744576419169,27.0363813,128.19,128.18,0.03]
[1744576419548,26.0,128.2,128.18,0.03]
[1744576419749,34.8372813,128.19,128.18,0.03]
[1744576420379,7.8009,128.19,128.18,0.03]
[1744576420556,34.8372813,128.19,128.18,0.03]
[1744576424287,54.3395813,128.19,128.16,0.03]
[1744576424587,34.8384813,128.17,128.16,0.0001]
[1744576424789,26.0,128.15,128.14,0.0001]
[1744576424960,53.0363813,128.15,128.14,0.0001]
[1744576425159,53.0363813,128.15,128.12,0.03]
[1744576425363,53.0363813,128.13,128.12,0.0001]
[1744576426981,60.8408813,128.13,128.12,0.0001]
[1744576427556,60.8408813,128.13,128.11,2.66e-05]
[1744576427764,26.0,128.09,128.03,6.4361]
[1744576427981,27.0363813,128.07,128.03,6.4361]
[1744576428281,27.0363813,128.08,128.03,6.4361]
[1744576428496,27.0363813,128.08,128.03,33.4724813]
[1744576428676,27.0363813,128.09,128.04,27.0363813]
[1744576428861,27.0363813,128.08,128.03,33.4724813]
[1744576429063,7.8082,128.07,128.03,33.4724813]
[1744576429407,7.8082,128.07,127.97,267.64]
[1744576429408,53.0363813,128.04,127.9,108.6799]
[1744576429697,27.0363813,127.99,127.91,7.8179]
[1744576429870,27.0363813,128.0,127.95,27.0363813]
[1744576430186,27.0363813,127.99,127.94,27.0363813]
[1744576430360,26.0,128.02,127.94,27.0363813]
[1744576430561,27.0363813,128.01,127.95,27.0363813]
[1744576430767,27.0363813,128.01,127.96,27.0363813]
[1744576430966,27.0363813,128.02,127.97,27.0363813]
[1744576431272,7.8118,128.02,127.95,0.28432314]
[1744576431560,34.8481813,128.02,127.95,0.28432314]
[1744576431772,7.8118,128.02,127.95,0.28432314]
[1744576431970,7.8118,128.02,127.98,27.0363813]
[1744576432191,7.8118,128.02,127.97,27.0363813]
[1744576432489,27.0363813,127.99,127.94,18.64964886]
[1744576432863,27.3399,128.02,127.94,45.68603016]
[1744576433070,27.0363813,128.0,127.95,27.0363813]
[1744576433388,27.0363813,128.0,127.94,18.64964886]
[1744576433590,27.0363813,127.99,127.94,45.68603016]
[1744576433770,34.8495813,127.99,127.94,45.68603016]
[1744576433973,34.8495813,127.99,127.94,53.50203016]
[1744576434165,27.0363813,128.01,127.96,27.0363813]
[1744576434367,27.0363813,128.0,127.95,27.0363813]
[1744576434678,27.0363813,128.0,127.94,26.46564886]
[1744576434881,34.8483813,128.01,127.96,27.0363813]
[1744576435286,27.0363813,127.99,127.92,7.8172]
[1744576435470,27.0363813,127.99,127.94,27.0363813]
[1744576435667,34.8489813,128.0,127.95,27.0363813]
[1744576436477,34.8489813,128.0,127.94,7.8156]
[1744576436687,7.8126,128.0,127.95,27.0363813]
[1744576437405,26.0,127.95,127.88,0.03]
[1744576437573,27.0363813,127.93,127.88,0.03]
[1744576437777,34.8535813,127.93,127.88,0.03]
[1744576437996,34.8535813,127.93,127.88,27.0663813]
[1744576438318,27.0363813,127.94,127.89,27.0363813]
[1744576438466,27.0363813,127.96,127.91,27.0363813]
[1744576439297,27.0363813,127.96,127.9,27.0363813]
[1744576439589,7.8149,127.96,127.92,27.0363813]
[1744576440098,7.8149,127.96,127.91,27.0363813]
[1744576440468,34.8512813,127.96,127.91,27.0363813]
[1744576440978,34.8512813,127.96,127.89,7.8192]
[1744576441179,34.8512813,127.96,127.91,27.0363813]
[1744576441892,1.6614,128.0,127.94,27.0363813]
[1744576442207,1.5681,128.05,127.91,128.61234886]
[1744576442501,27.0363813,128.03,127.97,27.0363813]
[1744576442798,7.81,128.04,128.0,27.0363813]
[1744576442997,34.8463813,128.04,127.99,27.0363813]
[1744576443167,36.4140813,128.05,128.0,27.0363813]
[1744576443475,27.0363813,128.05,128.0,27.0363813]
[1744576443789,27.0363813,128.07,128.02,27.0363813]
[1744576444478,34.8433813,128.09,128.0,27.0363813]
[1744576444690,34.8433813,128.09,128.04,27.0363813]
[1744576445001,42.7853813,128.1,128.05,27.0363813]
[1744576445186,27.0363813,128.12,128.07,27.0363813]
[1744576445384,7.8039,128.14,128.08,27.0363813]
[1744576445385,27.0363813,128.13,128.08,27.0363813]
[1744576445775,7.8039,128.14,128.09,27.0363813]
[1744576446067,13.40785112,128.15,128.1,27.0363813]
[1744576446274,36.4079813,128.15,128.09,27.0363813]
[1744576446503,27.0363813,128.14,128.09,27.0363813]
[1744576446708,7.8035,128.15,128.11,27.0363813]
[1744576446920,7.8035,128.15,128.07,19.07613357]
[1744576447208,7.8029,128.16,128.12,27.0363813]
[1744576447587,34.8392813,128.16,128.11,27.0363813]
[1744576447785,34.8386813,128.17,128.12,27.0363813]
[1744576448283,27.0363813,128.16,128.11,27.0363813]
[1744576448780,27.0363813,128.16,128.11,34.8420813]
[1744576449787,7.8023,128.17,128.12,27.0363813]
[1744576449979,34.8386813,128.17,128.12,27.0363813]
[1744576451283,34.8386813,128.17,128.11,7.8057]
[1744576451489,34.8386813,128.17,128.1,27.0363813]
[1744576451490,27.0363813,128.15,128.1,27.0363813]
[1744576452506,27.0363813,128.14,128.08,44.7237813]
[1744576452711,27.0363813,128.13,128.08,44.7237813]
[1744576452940,27.0363813,128.15,128.1,27.0363813]
[1744576453215,27.0363813,128.14,128.09,27.0363813]
[1744576453907,27.0363813,128.14,128.08,44.7237813]
[1744576454420,34.8405813,128.14,128.08,17.6874]
[1744576454713,27.0363813,128.13,128.08,44.7237813]
[1744576454916,27.0363813,128.13,128.08,34.8437813]
[1744576456223,27.0363813,128.14,128.08,34.8437813]
[1744576456596,27.0363813,128.14,128.09,27.0363813]
[1744576456912,27.0363813,128.16,128.1,27.0363813]
[1744576457119,27.0363813,128.12,128.06,82.6]
[1744576457415,27.0363813,128.12,128.01,6.5773]
[1744576457416,27.0363813,128.09,128.04,45.68603016]
[1744576457618,27.0363813,128.07,128.01,33.6136813]
[1744576457818,27.0363813,128.09,128.02,0.14216157]
[1744576458031,27.0363813,128.09,127.99,1.6648]
[1744576458032,27.0363813,128.07,127.99,1.6648]
[1744576458199,27.0363813,128.03,127.98,27.0363813]
[1744576458399,27.0363813,128.04,127.98,34.8498813]
[1744576458727,27.0363813,128.05,127.99,27.0363813]
[1744576458907,27.0363813,128.05,128.0,27.0363813]
[1744576459791,27.0363813,128.06,128.01,27.0363813]
[1744576461227,7.8088,128.07,128.0,7.8123]
[1744576461426,27.0363813,128.06,128.01,27.0363813]
[1744576461918,7.8088,128.07,128.01,27.0363813]
[1744576462223,27.0363813,128.08,128.03,27.0363813]
[1744576463123,27.0363813,128.07,128.02,27.0363813]
[1744576464200,7.8088,128.06,128.02,27.0363813]
[1744576465827,7.8084,128.07,128.03,27.0363813]
[1744576466123,7.8084,128.07,128.04,27.0363813]
[1744576466633,7.8076,128.08,128.04,27.0363813]
[1744576467619,27.0363813,128.07,127.98,102.56078471]
[1744576467819,7.8076,128.08,128.01,27.0363813]
[1744576467820,27.0363813,128.06,128.01,27.0363813]
[1744576468126,27.0363813,128.05,128.0,27.0363813]
[1744576468833,7.81,128.04,128.0,27.0363813]
[1744576469011,34.8463813,128.04,127.99,27.0363813]
[1744576469744,7.81,128.04,127.99,27.0363813]
[1744576469911,7.8097,128.05,128.01,27.0363813]
[1744576472041,34.8460813,128.05,128.01,27.0363813]
[1744576472241,7.8097,128.05,128.01,27.0363813]
[1744576473247,34.8460813,128.05,128.01,27.0363813]
[1744576473940,34.8460813,128.05,128.0,27.0363813]
[1744576474243,34.8460813,128.05,127.98,26.46304886]
[1744576474444,34.8460813,128.05,127.97,16.4373]
[1744576474445,27.0363813,128.04,127.99,27.0363813]
[1744576474635,27.0363813,128.02,127.97,36.8963813]
[1744576475147,27.0363813,128.01,127.97,9.86]
[1744576475336,27.0363813,128.01,127.95,90.4452]
[1744576475337,27.0363813,127.98,127.95,0.03]
[1744576475509,27.0363813,127.96,127.95,0.03]
[1744576477440,34.8512813,127.96,127.95,0.03]
[1744576477611,7.8149,127.96,127.95,0.03]
[1744576478518,34.8512813,127.96,127.95,0.03]
[1744576479418,7.8149,127.96,127.95,0.03]
[1744576483044,7.8145,127.97,127.95,0.03]
[1744576483345,34.8488813,128.0,127.95,27.0663813]
[1744576483849,34.8484813,128.01,127.96,27.0363813]
[1744576484143,34.8484813,128.01,127.95,0.03]
[1744576484144,7.8121,128.01,127.97,27.0363813]